bitfinex/quotes_ETHUSD_20250415
["timestamp","ask_amount","ask_price","bid_price","bid_amount"]
[1744719619967,6.11845,1634.4,1634.1,13.598712]
[1744719620166,6.11845,1634.4,1634.2,0.20894675]
[1744719620385,12.84906,1634.5,1634.2,6.11918]
[1744719620608,12.84906,1634.5,1634.3,0.20894675]
[1744719621017,6.72996,1634.7,1634.4,6.11843]
[1744719621388,12.84754,1634.7,1634.4,6.11843]
[1744719621584,0.6124,1634.7,1634.3,7.12674675]
[1744719621788,12.23595,1634.6,1634.3,7.12674675]
[1744719622102,12.23583,1634.6,1634.3,8.45133443]
[1744719622503,0.6124,1634.7,1634.3,8.45133443]
[1744719622504,12.23665,1634.5,1634.3,2.33253443]
[1744719622826,6.11827,1634.5,1634.3,1.00794675]
[1744719625104,6.11779,1634.6,1634.3,7.12669675]
[1744719625799,6.7298,1634.7,1634.4,6.11811]
[1744719625984,6.1174,1634.7,1634.5,0.21183909]
[1744719626502,12.23492,1634.7,1634.5,0.21183909]
[1744719627113,6.1177,1634.6,1634.5,0.21183909]
[1744719627528,6.1177,1634.6,1634.3,6.91775]
[1744719627739,6.1177,1634.6,1634.5,0.21176295]
[1744719627905,6.1177,1634.6,1634.3,6.91771]
[1744719628102,6.1177,1634.6,1634.5,0.21176295]
[1744719628306,6.1177,1634.6,1634.3,6.91771]
[1744719628535,12.23499,1634.7,1634.5,0.21176295]
[1744719628835,5.336,1634.8,1634.6,0.21176295]
[1744719629038,11.45313,1634.8,1634.6,0.21176295]
[1744719629394,0.6124,1635.0,1634.7,6.11722]
[1744719629732,6.11658,1634.9,1634.8,0.21115393]
[1744719630038,15.45194,1635.1,1634.8,6.90645]
[1744719630201,15.45194,1635.1,1634.9,0.21115393]
[1744719630531,6.11628,1635.0,1634.8,0.7895]
[1744719630716,15.45194,1635.1,1634.8,6.90644]
[1744719631530,6.11634,1635.0,1634.8,0.7895]
[1744719631691,12.23281,1635.0,1634.8,0.7895]
[1744719632426,12.23281,1635.0,1634.7,0.8148]
[1744719632427,6.11669,1634.9,1634.7,0.8148]
[1744719632608,12.23343,1634.9,1634.7,0.8148]
[1744719632923,6.11669,1634.9,1634.7,0.8148]
[1744719633696,12.23354,1634.9,1634.7,0.8148]
[1744719633916,6.11703,1634.8,1634.5,6.94309]
[1744719634116,6.11703,1634.8,1634.6,0.28943062]
[1744719634426,6.11733,1634.7,1634.6,0.28943062]
[1744719634732,6.11794,1634.6,1634.2,19.12326]
[1744719634906,6.11814,1634.5,1634.2,19.12326]
[1744719635107,6.11814,1634.5,1634.2,13.00418]
[1744719635320,6.11814,1634.5,1634.3,1.300418]
[1744719635908,12.84805,1634.6,1634.3,1.300418]
[1744719637933,6.11808,1634.5,1634.3,1.300418]
[1744719638609,6.11897,1634.3,1634.1,0.05]
[1744719639308,6.1192,1634.2,1634.1,0.05]
[1744719640636,12.06537,1634.3,1634.1,0.05]
[1744719640838,5.9464,1634.3,1634.1,0.05]
[1744719641027,12.06534,1634.3,1634.1,0.05]
[1744719641742,18.18438,1634.3,1634.1,0.05]
[1744719642641,18.18438,1634.3,1634.2,0.36350648]
[1744719642807,18.18438,1634.3,1634.1,0.05]
[1744719643018,11.45294,1634.3,1634.2,0.36350648]
[1744719643219,5.334,1634.3,1634.1,6.98351]
[1744719643420,12.06519,1634.6,1634.2,7.18085748]
[1744719643620,6.11808,1634.5,1634.2,12.60170648]
[1744719643816,12.2364,1634.5,1634.2,6.48250648]
[1744719644017,12.06489,1634.7,1634.3,6.93261]
[1744719644229,17.57009,1634.7,1634.4,6.48375933]
[1744719644754,17.57009,1634.7,1634.4,0.36540933]
[1744719644755,6.11771,1634.6,1634.4,0.36540933]
[1744719644923,11.45249,1634.7,1634.4,7.21367726]
[1744719644924,17.57007,1634.7,1634.4,7.21367726]
[1744719645125,17.57007,1634.7,1634.4,6.84826793]
[1744719645320,5.335,1634.7,1634.5,6.48238978]
[1744719645528,5.335,1634.7,1634.5,6.48237978]
[1744719645757,5.335,1634.7,1634.5,1.69747755]
[1744719646857,5.335,1634.7,1634.5,13.93351755]
[1744719647058,5.335,1634.7,1634.5,7.81545755]
[1744719647422,17.57018,1634.7,1634.5,1.69747755]
[1744719647623,5.335,1634.7,1634.5,0.36441978]
[1744719647823,5.335,1634.7,1634.6,0.8172]
[1744719648024,12.23355,1634.9,1634.6,7.29825428]
[1744719648225,12.23355,1634.9,1634.6,1.18055428]
[1744719648431,6.11707,1634.8,1634.6,1.18055428]
[1744719648636,12.23419,1634.8,1634.6,1.91039971]
[1744719649767,6.11707,1634.8,1634.6,1.91039971]
[1744719651857,12.23431,1634.8,1634.6,1.91039971]
[1744719652454,6.11707,1634.8,1634.6,1.91039971]
[1744719654665,12.2342,1634.8,1634.6,1.91039971]
[1744719654843,12.23418,1634.8,1634.6,1.91039971]
[1744719655043,6.11707,1634.8,1634.6,1.91039971]
[1744719655244,12.23417,1634.8,1634.6,1.91039971]
[1744719655653,6.11733,1634.7,1634.6,0.36335428]
[1744719655852,6.11733,1634.7,1634.5,0.7512]
[1744719656173,6.11733,1634.7,1634.6,0.36236503]
[1744719656541,12.23437,1634.8,1634.6,0.36236503]
[1744719657371,6.11707,1634.8,1634.6,0.36236503]
[1744719657568,12.23345,1634.9,1634.6,0.36236503]
[1744719657777,6.11699,1634.8,1634.6,0.36236503]
[1744719657942,12.23415,1634.8,1634.6,0.36236503]
[1744719658154,6.11699,1634.8,1634.6,0.36236503]
[1744719658351,12.23412,1634.8,1634.6,0.36236503]
[1744719659084,6.11699,1634.8,1634.6,0.36236503]
[1744719659284,12.23407,1634.8,1634.6,0.36236503]
[1744719659783,6.11699,1634.8,1634.6,0.36236503]
[1744719660687,12.23423,1634.8,1634.6,0.36236503]
[1744719661187,6.72973,1634.7,1634.6,0.36236503]
[1744719661386,6.72973,1634.7,1634.4,3.8176]
[1744719661589,6.11771,1634.6,1634.4,3.8176]
[1744719661759,6.11771,1634.6,1634.5,0.36221286]
[1744719662156,6.11733,1634.7,1634.5,0.36221286]
[1744719662477,6.11701,1634.8,1634.5,6.48016286]
[1744719662655,12.23417,1634.8,1634.5,6.48016286]
[1744719663097,6.11733,1634.7,1634.5,6.48016286]
[1744719663803,6.11733,1634.7,1634.5,0.36221286]
[1744719664181,12.23489,1634.7,1634.5,0.36221286]
[1744719664482,6.1177,1634.6,1634.5,0.36221286]
[1744719664889,6.7301,1634.6,1634.5,0.36221286]
[1744719665094,12.0621,1634.6,1634.5,0.36221286]
[1744719665296,15.80192877,1634.6,1634.1,6.11]
[1744719665494,12.23657,1634.5,1634.1,0.05]
[1744719665803,6.11847,1634.4,1634.1,6.16942]
[1744719666007,12.23708,1634.4,1634.1,7.478816]
[1744719666207,6.11847,1634.4,1634.1,13.598276]
[1744719666402,12.23712,1634.4,1634.1,6.16942]
[1744719666610,6.11847,1634.4,1634.1,6.16942]
[1744719667402,6.11847,1634.4,1634.1,12.28889]
[1744719667915,6.11847,1634.4,1634.1,6.16942]
[1744719668206,6.11847,1634.4,1634.1,0.05]
[1744719668207,12.23716,1634.4,1634.1,0.05]
[1744719668405,12.23716,1634.4,1634.1,6.16951]
[1744719668606,9.68422877,1634.6,1634.1,6.16951]
[1744719668607,12.2379,1634.3,1634.1,0.05]
[1744719668800,6.1192,1634.2,1634.1,0.05]
[1744719669109,6.7316,1634.2,1634.1,0.05]
[1744719670406,12.0646,1634.2,1634.1,0.05]
[1744719672606,12.0646,1634.2,1634.1,0.35638435]
[1744719673896,15.80442877,1634.2,1634.1,0.35638435]
[1744719675017,15.80442877,1634.2,1634.1,0.33648524]
[1744719675887,15.80442877,1634.2,1634.1,0.05]
[1744719676300,18.80442877,1634.2,1634.1,0.05]
[1744719677300,15.80442877,1634.2,1634.1,0.05]
[1744719677500,15.80442877,1634.2,1634.1,0.34036886]
[1744719677700,15.80442877,1634.2,1634.1,0.05]
[1744719678290,12.0646,1634.2,1634.1,0.05]
[1744719678927,12.0646,1634.2,1634.1,0.33968334]
[1744719679124,12.0646,1634.2,1634.1,0.05]
[1744719679418,12.0646,1634.2,1634.1,0.33968334]
[1744719679591,15.80442877,1634.2,1634.1,0.33968334]
[1744719679786,15.80442877,1634.2,1634.1,0.05]
[1744719680924,6.12144,1633.6,1633.5,0.55]
[1744719681102,15.80766877,1633.6,1633.5,0.55]
[1744719681298,16.55935493,1633.6,1633.5,0.55]
[1744719681492,15.80766877,1633.6,1633.5,0.55]
[1744719682307,18.80766877,1633.6,1633.5,0.55]
[1744719683930,19.27193983,1633.6,1633.5,0.55]
[1744719684140,6.73384,1633.6,1633.5,0.55]
[1744719684293,12.06884,1633.6,1633.5,0.55]
[1744719684500,11.45644,1633.6,1633.5,0.55]
[1744719687739,11.45644,1633.6,1633.5,0.79802697]
[1744719687936,15.82052616,1633.6,1633.5,0.79802697]
[1744719688350,15.82052616,1633.6,1633.5,0.55]
[1744719688710,15.06884,1633.6,1633.5,0.55]
[1744719689346,5.335,1633.6,1633.5,0.55]
[1744719689644,12.663287,1633.6,1633.5,0.7984066]
[1744719689954,11.45644,1633.6,1633.5,0.7984066]
[1744719690249,15.19626877,1633.6,1633.5,0.7984066]
[1744719695071,15.19626877,1633.6,1633.5,0.55]
[1744719695385,15.80866877,1633.6,1633.5,0.55]
[1744719695740,15.80866877,1633.6,1633.5,0.80326485]
[1744719697539,15.80866877,1633.6,1633.5,0.55]
[1744719697965,16.56035493,1633.6,1633.5,0.55]
[1744719698367,26.55335493,1633.6,1633.5,1e-05]
[1744719698586,6.12219,1633.4,1633.3,0.55]
[1744719698786,12.99568616,1633.5,1633.3,0.55]
[1744719698991,6.12219,1633.4,1633.3,0.80546718]
[1744719699347,6.122,1633.5,1633.3,0.80546718]
[1744719699550,6.12219,1633.4,1633.3,0.80546718]
[1744719699975,6.12219,1633.4,1633.3,0.55]
[1744719700292,12.24401,1633.5,1633.3,0.80470767]
[1744719700448,6.122,1633.5,1633.3,0.25470767]
[1744719700649,6.12219,1633.4,1633.3,0.25470767]
[1744719701162,9.12154,1633.6,1633.3,0.25470767]
[1744719701478,5.335,1633.5,1633.4,0.7593]
[1744719701678,5.335,1633.5,1633.4,1.01370389]
[1744719702061,11.45682,1633.5,1633.4,1.01370389]
[1744719702258,5.335,1633.5,1633.4,1.01370389]
[1744719702856,5.335,1633.8,1633.5,0.774]
[1744719703163,0.75168532,1634.0,1633.8,0.774]
[1744719703164,6.12013,1634.0,1633.8,0.774]
[1744719703369,6.12009,1634.0,1633.8,0.774]
[1744719703564,12.24025,1634.0,1633.9,0.25296108]
[1744719704889,12.24025,1634.0,1633.8,0.774]
[1744719704890,6.12032,1633.9,1633.8,0.774]
[1744719705073,6.12032,1633.9,1633.8,1.02696108]
[1744719705870,5.335,1634.1,1634.0,0.8089]
[1744719706075,5.335,1634.1,1634.0,7.62175]
[1744719706270,5.335,1634.1,1634.0,1.05829328]
[1744719708665,10.22811683,1634.3,1634.0,7.17800328]
[1744719709085,4.10913683,1634.3,1634.0,7.17800328]
[1744719709290,4.10913683,1634.3,1634.1,6.11941]
[1744719709489,4.10913683,1634.3,1634.2,0.24734463]
[1744719709806,4.10913683,1634.3,1634.1,6.11941]
[1744719710009,17.57118,1634.4,1634.2,13.27125463]
[1744719710010,5.334,1634.4,1634.2,13.27125463]
[1744719710222,5.334,1634.4,1634.3,6.94412]
[1744719710367,9.85604877,1635.0,1634.2,6.36636463]
[1744719710368,5.334,1634.7,1634.5,0.8253]
[1744719710895,11.45146,1634.7,1634.6,0.2468136]
[1744719711099,11.45146,1634.7,1634.2,0.8253]
[1744719711100,6.11833,1634.5,1634.2,0.8253]
[1744719711397,6.11833,1634.5,1634.3,0.2468136]
[1744719711800,6.11845,1634.4,1634.3,0.2468136]
[1744719712589,12.23722,1634.4,1634.1,0.799]
[1744719712791,12.23722,1634.4,1634.3,0.23641888]
[1744719712978,12.23722,1634.4,1634.1,0.799]
[1744719713482,12.23722,1634.4,1634.2,0.23641888]
[1744719713683,6.11845,1634.4,1634.1,6.91857]
[1744719713999,12.23715,1634.4,1634.2,0.23641888]
[1744719714369,12.23715,1634.4,1634.1,0.799]
[1744719714569,12.23715,1634.4,1634.3,0.23641888]
[1744719714790,6.11892,1634.3,1634.1,0.799]
[1744719714970,6.1192,1634.2,1634.1,0.799]
[1744719716700,6.11964,1634.1,1633.9,0.8285]
[1744719717097,6.11995,1634.0,1633.9,0.8285]
[1744719717802,6.11964,1634.1,1633.9,1.0667391]
[1744719718208,6.11995,1634.0,1633.9,1.0667391]
[1744719719808,6.11995,1634.0,1633.9,0.2382391]
[1744719720199,6.11995,1634.0,1633.6,12.24268]
[1744719720200,6.12107,1633.7,1633.6,0.7708]
[1744719721487,12.24172,1633.8,1633.6,0.7708]
[1744719721808,11.45339,1633.9,1633.6,6.89217]
[1744719721984,11.45336,1633.9,1633.6,6.89211]
[1744719722380,11.45336,1633.9,1633.6,7.581321]
[1744719722576,6.11967,1634.1,1633.7,0.7648]
[1744719722811,11.45222,1634.2,1633.9,0.7648]
[1744719723008,6.11958,1634.1,1633.9,0.7648]
[1744719723586,11.45222,1634.2,1633.9,6.88482]
[1744719723794,6.11886,1634.3,1633.9,7.573302]
[1744719723983,12.23878,1634.2,1633.9,7.573302]
[1744719724180,6.11936,1634.2,1633.9,7.573302]
[1744719724383,6.11893,1634.3,1634.0,6.92291]
[1744719724591,6.11893,1634.3,1634.0,13.04275]
[1744719724808,12.23792,1634.3,1634.0,8.30215292]
[1744719724996,12.23863,1634.2,1634.0,0.8031]
[1744719725196,12.23789,1634.3,1634.0,0.8031]
[1744719725599,12.23789,1634.3,1634.0,6.92303]
[1744719725800,6.1192,1634.2,1634.0,0.8031]
[1744719726745,12.23797,1634.3,1634.0,0.8031]
[1744719727551,6.11921,1634.2,1634.0,0.8031]
[1744719727703,6.11888,1634.3,1634.0,0.8031]
[1744719727890,11.45119,1634.5,1634.2,6.11905]
[1744719728090,6.11859,1634.4,1634.0,7.6841952]
[1744719728334,6.11847,1634.4,1634.1,6.11957]
[1744719728492,6.11847,1634.4,1634.1,12.23904]
[1744719728842,6.11847,1634.4,1634.1,12.23894]
[1744719728991,6.11847,1634.4,1634.2,0.8152]
[1744719729191,11.45115,1634.5,1634.3,6.1187]
[1744719729192,5.333,1634.5,1634.3,6.1187]
[1744719729491,53.85243,1634.7,1634.5,0.8311]
[1744719729723,6.11743,1634.7,1634.5,0.8311]
[1744719730413,6.1177,1634.6,1634.5,0.8311]
[1744719730612,12.23491,1634.7,1634.5,0.8311]
[1744719730822,6.11743,1634.7,1634.5,0.8311]
[1744719731221,12.23494,1634.7,1634.5,0.8311]
[1744719731417,6.11743,1634.7,1634.5,0.8311]
[1744719732734,6.11743,1634.7,1634.6,0.24134908]
[1744719736567,6.11733,1634.7,1634.6,0.24134908]
[1744719737045,11.44806,1634.8,1634.6,0.24134908]
[1744719737245,17.56516,1634.8,1634.6,0.24134908]
[1744719737622,6.11733,1634.7,1634.6,0.24134908]
[1744719738056,6.11881,1634.4,1634.2,0.8171]
[1744719738262,12.23762,1634.4,1634.3,0.23384089]
[1744719738767,18.18002,1634.4,1634.3,0.23384089]
[1744719739268,6.11941,1634.2,1634.0,0.8026]
[1744719739671,6.11957,1634.1,1634.0,0.8026]
[1744719739831,6.12009,1634.0,1633.7,6.12098]
[1744719740038,6.12009,1634.0,1633.8,0.8026]
[1744719740264,12.24035,1634.0,1633.8,0.8026]
[1744719740466,6.11882,1634.3,1633.9,6.12012]
[1744719740671,6.1201,1634.0,1633.8,0.8026]
[1744719741074,6.12032,1633.9,1633.8,0.8026]
[1744719741260,6.12107,1633.7,1633.6,0.8328]
[1744719741593,6.12174,1633.6,1633.4,0.8328]
[1744719742196,12.24337,1633.6,1633.4,0.8328]
[1744719742355,6.12163,1633.6,1633.4,0.8328]
[1744719743257,6.12116,1633.7,1633.4,0.8328]
[1744719743483,12.24242,1633.7,1633.4,6.95494]
[1744719743785,12.2424,1633.7,1633.4,6.95494]
[1744719743941,6.12146,1633.6,1633.4,0.8328]
[1744719744282,12.24319,1633.6,1633.4,0.8328]
[1744719744501,6.12182,1633.5,1633.4,0.8328]
[1744719744682,12.24314,1633.6,1633.4,0.8328]
[1744719745675,6.12146,1633.6,1633.4,0.8328]
[1744719746185,6.1215,1633.6,1633.4,0.8328]
[1744719746484,6.1214,1633.7,1633.4,0.8328]
[1744719746668,6.12146,1633.6,1633.4,0.8328]
[1744719746867,12.24308,1633.6,1633.4,0.8328]
[1744719747880,10.47255877,1633.9,1633.2,0.7737]
[1744719747881,6.12232,1633.4,1633.2,0.7737]
[1744719749397,6.12189,1633.5,1633.2,0.7737]
[1744719749689,6.1211,1633.7,1633.2,0.8349256]
[1744719749858,6.1211,1633.7,1633.4,6.12208]
[1744719750061,6.12121,1633.7,1633.4,6.12208]
[1744719750387,6.12121,1633.7,1633.2,13.01937]
[1744719750388,6.12166,1633.6,1633.2,13.01937]
[1744719750581,6.12166,1633.6,1633.3,12.24512]
[1744719751192,6.12166,1633.6,1633.3,6.12256]
[1744719751559,6.12166,1633.6,1633.3,6.12242]
[1744719752397,6.733281,1633.7,1633.3,12.30606922]
[1744719752694,6.733281,1633.7,1633.3,12.24485]
[1744719753289,6.12077,1633.8,1633.5,6.94684]
[1744719753460,12.24179,1633.8,1633.5,0.8252]
[1744719753661,6.12108,1633.7,1633.5,0.8252]
[1744719753861,6.1207,1633.8,1633.5,0.8252]
[1744719754061,12.91496,1633.8,1633.5,6.94691]
[1744719754695,6.79401,1633.8,1633.5,6.94691]
[1744719755004,6.79401,1633.8,1633.5,13.0686]
[1744719755163,0.67331,1633.8,1633.5,0.8252]
[1744719755371,6.12119,1633.7,1633.5,0.8252]
[1744719755799,6.12119,1633.7,1633.4,13.03154]
[1744719756011,12.24168,1633.8,1633.4,13.03154]
[1744719756306,12.24168,1633.8,1633.5,6.1218]
[1744719756483,12.24169,1633.8,1633.4,13.03154]
[1744719757202,6.12081,1633.8,1633.5,6.12177]
[1744719757370,12.2418,1633.8,1633.4,13.0316]
[1744719759205,6.12125,1633.7,1633.4,6.9095]
[1744719759512,6.12125,1633.7,1633.4,13.03159]
[1744719759700,0.6124,1633.9,1633.4,6.90954]
[1744719759907,11.45014,1634.0,1633.7,0.7582]
[1744719760113,5.33,1634.0,1633.7,0.7582]
[1744719760273,5.33,1634.0,1633.8,6.12065]
[1744719760586,11.45005,1634.0,1633.7,6.87914]
[1744719760905,11.45005,1634.0,1633.7,13.00011]
[1744719761101,4.0,1634.1,1633.9,6.12016]
[1744719761402,4.0,1634.1,1633.8,6.12051]
[1744719761611,10.11967,1634.1,1633.8,6.12051]
[1744719762508,10.11967,1634.1,1633.9,0.2264906]
[1744719762811,6.11995,1634.0,1633.7,13.00011]
[1744719762973,6.12045,1633.9,1633.6,6.12134]
[1744719763178,0.6124,1634.0,1633.5,6.92518]
[1744719763390,6.12088,1633.8,1633.5,13.0469]
[1744719764409,6.12088,1633.8,1633.5,13.04684]
[1744719765124,12.24174,1633.8,1633.5,6.92512]
[1744719765419,6.12108,1633.7,1633.5,0.8034]
[1744719766628,6.12108,1633.7,1633.4,13.00777]
[1744719767129,6.12108,1633.7,1633.4,13.00774]
[1744719767418,6.12108,1633.7,1633.4,6.88567]
[1744719767625,6.12108,1633.7,1633.4,13.00774]
[1744719768216,12.24181,1633.8,1633.5,6.12179]
[1744719769125,6.12116,1633.7,1633.4,6.88567]
[1744719769334,6.1207,1633.8,1633.4,0.7636]
[1744719769531,15.19119877,1633.9,1633.3,6.88567]
[1744719769532,12.24347,1633.6,1633.3,6.88567]
[1744719769713,6.12187,1633.5,1633.3,0.7632]
[1744719769918,6.12187,1633.5,1633.2,6.12285]
[1744719770114,12.2439,1633.5,1633.2,6.12285]
[1744719770431,6.1222,1633.4,1633.1,6.9364]
[1744719770795,6.12257,1633.3,1633.1,0.8132]
[1744719772028,12.85693,1633.4,1633.1,0.05]
[1744719772199,5.9434,1633.5,1633.2,6.12284]
[1744719772395,5.9434,1633.5,1633.3,6.12234]
[1744719772704,5.331,1633.5,1633.3,6.12253]
[1744719772903,5.331,1633.5,1633.3,13.03399]
[1744719773132,5.331,1633.5,1633.3,6.91146]
[1744719774221,6.1216,1633.6,1633.3,0.789]
[1744719774392,0.6124,1633.7,1633.1,6.92672]
[1744719774393,12.85702,1633.4,1633.1,6.92672]
[1744719774596,6.73459,1633.4,1633.1,6.92672]
[1744719774998,6.73459,1633.4,1633.1,13.04994]
[1744719775303,6.73459,1633.4,1633.1,6.92672]
[1744719776141,6.73459,1633.4,1633.1,6.17322]
[1744719776142,12.85708,1633.4,1633.1,6.17322]
[1744719777240,12.85708,1633.4,1633.1,0.05]
[1744719777609,12.85708,1633.4,1633.2,0.22785736]
[1744719778035,12.85708,1633.4,1633.1,0.05]
[1744719778227,12.85708,1633.4,1633.3,0.22785736]
[1744719778633,12.85708,1633.4,1633.1,0.05]
[1744719778957,6.12259,1633.3,1633.1,0.05]
[1744719779162,12.24543,1633.3,1633.2,0.22785736]
[1744719779371,6.12294,1633.2,1633.1,0.05]
[1744719781618,6.73534,1633.2,1633.1,0.05]
[1744719784267,7.19300992,1633.2,1633.1,0.05]
[1744719785269,10.94469524,1633.2,1633.1,0.05]
[1744719786073,17.93969524,1633.2,1633.1,1e-05]
[1744719786265,15.23452401,1633.2,1633.1,1e-05]
[1744719786637,39.28431301,1633.2,1633.1,1e-05]
[1744719786848,36.53773901,1633.2,1633.1,1e-05]
[1744719787363,23.38809924,1633.2,1633.1,1e-05]
[1744719787533,15.23452401,1633.2,1633.1,1e-05]
[1744719788370,14.68452401,1633.2,1633.1,1e-05]
[1744719788663,13.93283869,1633.2,1633.1,1e-05]
[1744719788823,6.12294,1633.2,1633.1,1e-05]
[1744719789030,17.57746,1633.3,1633.1,0.24085254]
[1744719789233,6.12294,1633.2,1633.1,1e-05]
[1744719790157,17.57733,1633.3,1633.1,1e-05]
[1744719790360,6.12294,1633.2,1633.1,1e-05]
[1744719792635,6.12294,1633.2,1633.1,0.23743347]
[1744719793469,9.86276877,1633.2,1633.1,0.23743347]
[1744719793872,11.45459,1633.3,1633.1,0.23743347]
[1744719794075,5.332,1633.3,1633.1,0.23743347]
[1744719794377,6.12294,1633.2,1633.1,0.23743347]
[1744719796388,11.45474,1633.3,1633.2,0.7843]
[1744719796389,5.332,1633.3,1633.2,0.7843]
[1744719796678,5.332,1633.3,1633.2,6.90724]
[1744719796864,6.12127,1633.7,1633.2,1.49877635]
[1744719797050,6.12152,1633.6,1633.5,0.8221]
[1744719797250,6.12224,1633.4,1633.2,1.05952348]
[1744719797449,6.12224,1633.4,1633.2,0.8221]
[1744719797662,6.12224,1633.4,1633.3,0.23742348]
[1744719798562,6.12189,1633.5,1633.3,0.23742348]
[1744719798783,12.24395,1633.5,1633.3,0.23742348]
[1744719799182,6.12189,1633.5,1633.3,0.23742348]
[1744719799479,6.12219,1633.4,1633.3,0.23742348]
[1744719799776,6.12189,1633.5,1633.3,0.23742348]
[1744719799978,6.12219,1633.4,1633.3,0.23742348]
[1744719800447,6.734079,1633.5,1633.3,0.23742348]
[1744719800651,6.12189,1633.5,1633.3,0.23742348]
[1744719800872,12.24391,1633.5,1633.3,0.23742348]
[1744719801082,6.12189,1633.5,1633.3,0.23742348]
[1744719801379,6.12153,1633.6,1633.3,6.35988348]
[1744719801771,6.12153,1633.6,1633.3,6.35987348]
[1744719802081,12.24312,1633.6,1633.3,6.35987348]
[1744719802502,6.12113,1633.7,1633.4,0.8244]
[1744719802679,11.45279,1633.8,1633.5,6.12176]
[1744719803001,11.45271,1633.8,1633.5,6.35694118]
[1744719803151,11.45271,1633.8,1633.5,6.35692118]
[1744719803553,11.45271,1633.8,1633.5,0.23522118]
[1744719803755,6.12119,1633.7,1633.5,0.23522118]
[1744719803957,12.24248,1633.7,1633.5,0.23522118]
[1744719804155,6.12119,1633.7,1633.5,0.23522118]
[1744719804499,12.24241,1633.7,1633.5,0.23522118]
[1744719805098,6.12119,1633.7,1633.5,0.23522118]
[1744719805299,17.57359,1633.8,1633.5,0.23522118]
[1744719805503,17.57364,1633.8,1633.5,0.23522118]
[1744719805660,6.12108,1633.7,1633.5,0.23522118]
[1744719806498,12.24251,1633.7,1633.5,0.23522118]
[1744719806696,6.12108,1633.7,1633.5,0.23522118]
[1744719806867,11.45284,1633.8,1633.5,6.35697118]
[1744719807068,17.57379,1633.8,1633.5,6.35697118]
[1744719807381,6.12111,1633.7,1633.5,0.23522118]
[1744719807763,12.24238,1633.7,1633.5,0.23522118]
[1744719808066,12.24238,1633.7,1633.4,6.94649]
[1744719808288,6.12145,1633.6,1633.4,0.8244]
[1744719808509,6.12145,1633.6,1633.5,0.23142443]
[1744719809202,12.24254,1633.7,1633.5,0.23142443]
[1744719810102,17.57367,1633.8,1633.5,0.23142443]
[1744719810286,17.57367,1633.8,1633.5,6.35313443]
[1744719810287,11.45281,1633.8,1633.5,6.35313443]
[1744719810603,6.12107,1633.7,1633.6,1.02290971]
[1744719810788,6.12107,1633.7,1633.6,0.7927]
[1744719810956,6.12107,1633.7,1633.6,1.02290971]
[1744719811457,11.45281,1633.8,1633.5,6.95297]
[1744719811663,5.332,1633.8,1633.7,0.8312]
[1744719811909,5.332,1633.8,1633.7,6.95227]
[1744719812200,6.12007,1634.0,1633.7,13.30343971]
[1744719812403,6.1201,1634.0,1633.7,1.06140971]
[1744719812591,6.12038,1633.9,1633.7,1.06140971]
[1744719812784,6.1201,1634.0,1633.7,1.06140971]
[1744719812972,5.331,1634.1,1633.7,1.06140971]
[1744719812973,6.12064,1633.9,1633.7,1.06140971]
[1744719813178,6.1207,1633.8,1633.7,1.06140971]
[1744719814077,6.1207,1633.8,1633.7,1.0400221]
[1744719814405,6.1207,1633.8,1633.7,0.23020971]
[1744719814604,12.24175,1633.8,1633.4,12.24418]
[1744719814803,12.24175,1633.8,1633.7,0.22891933]
[1744719815105,6.12108,1633.7,1633.4,6.12208]
[1744719815702,6.12108,1633.7,1633.4,12.24418]
[1744719816100,6.1207,1633.8,1633.5,6.1215]
[1744719816300,12.24175,1633.8,1633.5,6.1215]
[1744719817008,6.1211,1633.7,1633.4,6.12205]
[1744719817222,6.1211,1633.7,1633.5,0.8183]
[1744719818179,12.24237,1633.7,1633.3,6.12247]
[1744719818383,6.12196,1633.5,1633.3,0.8037]
[1744719818878,12.24394,1633.5,1633.3,0.8037]
[1744719819083,6.1223,1633.4,1633.1,6.92885]
[1744719819637,12.24471,1633.4,1633.1,6.92885]
[1744719819982,6.1223,1633.4,1633.1,13.05207]
[1744719820185,11.45157,1633.6,1633.2,6.12275]
[1744719820508,6.12184,1633.5,1633.2,6.12275]
[1744719820708,11.45154,1633.6,1633.1,1.61174039]
[1744719820908,17.57327,1633.6,1633.3,6.12243]
[1744719821123,6.12182,1633.5,1633.2,12.24588]
[1744719821433,6.12182,1633.5,1633.2,6.12294]
[1744719821743,6.12182,1633.5,1633.2,12.24578]
[1744719822727,17.57334,1633.6,1633.3,6.35252204]
[1744719823027,17.57334,1633.6,1633.4,0.8263]
[1744719823028,11.45154,1633.6,1633.4,0.8263]
[1744719823324,11.45154,1633.6,1633.3,0.8263]
[1744719823325,6.12182,1633.5,1633.3,0.8263]
[1744719823545,11.45154,1633.6,1633.5,0.22998204]
[1744719823749,11.45154,1633.6,1633.3,0.8263]
[1744719823750,17.57327,1633.6,1633.3,0.8263]
[1744719823948,6.12182,1633.5,1633.4,0.22998204]
[1744719825060,17.57335,1633.6,1633.4,0.22998204]
[1744719825261,17.57314,1633.6,1633.4,0.22998204]
[1744719825559,6.12182,1633.5,1633.4,0.22998204]
[1744719826091,12.2439,1633.5,1633.2,6.12287]
[1744719826233,12.2439,1633.5,1633.4,0.22998204]
[1744719826428,6.12182,1633.5,1633.2,12.2457]
[1744719826626,6.12182,1633.5,1633.4,0.22998204]
[1744719826827,6.12182,1633.5,1633.2,12.2457]
[1744719827011,6.12182,1633.5,1633.2,6.12283]
[1744719827207,6.12182,1633.5,1633.3,0.22998204]
[1744719827958,6.12219,1633.4,1633.1,13.00513]
[1744719828244,6.12182,1633.5,1633.2,12.24574]